fUSD/lending_fUSD_20260228
["ID","MTS","AMOUNT","RATE_DAILY","PERIOD"]
[406890119,1772267448834,-467.0,0.00044575,30]
[406890121,1772267448843,-467.0,0.00044575,30]
[406890123,1772267448852,-467.0,0.00044575,30]
[406890125,1772267448861,-467.0,0.00044575,30]
[406890127,1772267448871,-467.0,0.00044575,30]
[406890128,1772267448880,-468.0,0.00044575,30]
[406890130,1772267448890,-468.0,0.00044575,30]
[406890132,1772267448899,-468.0,0.00044575,30]
[406890134,1772267448908,-468.0,0.00044575,30]
[406890136,1772267448917,-468.0,0.00044575,30]
[406890138,1772267448927,-468.0,0.00044575,30]
[406890140,1772267448937,-468.0,0.00044575,30]
[406890142,1772267448946,-468.0,0.00044575,30]
[406890144,1772267448956,-468.0,0.00044575,30]
[406890146,1772267448965,-468.0,0.00044575,30]
[406890148,1772267448974,-468.0,0.00044575,30]
[406890150,1772267448984,-468.0,0.00044575,30]
[406890152,1772267448993,-468.0,0.00044575,30]
[406890154,1772267449002,-468.0,0.00044575,30]
[406890156,1772267449011,-468.0,0.00044575,30]
[406890158,1772267449020,-468.0,0.00044575,30]
[406890160,1772267449029,-468.0,0.00044575,30]
[406890162,1772267449038,-468.0,0.00044575,30]
[406890164,1772267449047,-468.0,0.00044575,30]
[406890166,1772267449057,-468.0,0.00044575,30]
[406890168,1772267449066,-468.0,0.00044575,30]
[406890170,1772267449075,-468.0,0.00044575,30]
[406890172,1772267449084,-468.0,0.00044575,30]
[406890174,1772267449093,-468.0,0.00044575,30]
[406890186,1772267449203,-468.0,0.00044575,30]
[406890188,1772267449214,-468.0,0.00044575,30]
[406890190,1772267449224,-468.0,0.00044575,30]
[406890192,1772267449233,-564.0,0.00044627,2]
[406890193,1772267449243,-3146.61,0.000447,14]
[406890194,1772267449252,-714.67,0.000447,14]
[406890195,1772267449262,-1040.5,0.00044882,120]
[406890196,1772267449271,-152.0,0.000449,120]
[406890197,1772267449281,-182.62233084,0.000449,120]
[406890198,1772267449290,-200.0,0.00045,5]
[406890199,1772267449299,-184.49042972,0.00045,120]
[406890200,1772267449309,-10070.13638304,0.00045,5]
[406890201,1772267449318,-1000.0,0.00045,120]
[406890202,1772267449327,-1000.0,0.00045,120]
[406890203,1772267449346,-5734.69,0.00045,120]
[406890204,1772267449358,-268.0,0.00045308,90]
[406890205,1772267449367,-1990.12370475,0.00045404,17]
[406890206,1772267449377,-3999.69374473,0.00045462,120]
[406890207,1772267449388,-1000.0,0.000455,120]
[406890208,1772267449398,-1000.0,0.000455,120]
[406890210,1772267449407,-1000.0,0.000455,120]
[406890212,1772267449417,-1000.0,0.000455,120]
[406890214,1772267449427,-1000.0,0.000455,120]
[406890216,1772267449436,-1000.0,0.000455,120]
[406890218,1772267449446,-1000.0,0.000455,120]
[406890220,1772267449455,-1000.0,0.000455,120]
[406890222,1772267449465,-1000.0,0.000455,120]
[406890224,1772267449474,-150.0,0.000458,120]
[406890226,1772267449484,-309.24,0.00045885,120]
[406890227,1772267449494,-1040.5,0.00045898,120]
[406890230,1772267449504,-152.0,0.00045908,5]
[406890231,1772267449515,-312.4472434,0.00045998,120]
[406890234,1772267449525,-2932.2129754,0.00045999,22]
[406890236,1772267449535,-365.24449922,0.00046,5]
[406890238,1772267449544,-251.42583852,0.00046186,3]
[406890240,1772267449554,-155.0,0.000462,120]
[406890242,1772267449564,-175.76937218,0.000462,90]
[406890244,1772267449574,-246.83675833,0.00046404,26]
[406890246,1772267449585,-155.697,0.00046404,2]
[406890248,1772267449595,-1537.65148192,0.00046404,120]
[406890250,1772267449606,-246.0,0.00046404,30]
[406890252,1772267449619,-205.80114676,0.00046404,120]
[406890254,1772267449630,-500.0,0.00046404,120]
[406890256,1772267449641,-151.0,0.00046404,60]
[406890258,1772267449652,-658.71,0.00046404,120]
[406890260,1772267449663,-611.0,0.00046404,120]
[406890262,1772267449674,-164.94102709,0.00046404,120]
[406890264,1772267449686,-282.08239593,0.00046404,60]
[406890267,1772267449702,-159.17909743,0.00046404,120]
[406890269,1772267449717,-2732.83728535,0.00046404,30]
[406890271,1772267449729,-182.2772955,0.00046404,30]
[406890273,1772267449740,-180.7794277,0.00046404,120]
[406890275,1772267449750,-165.78174052,0.00046404,120]
[406890277,1772267449760,-12600.11748327,0.00046404,2]
[406890279,1772267449770,-164.44245548,0.00046404,120]
[406890281,1772267449780,-164.42452389,0.00046404,30]
[406890283,1772267449791,-159.82153029,0.00046404,30]
[406890285,1772267449801,-154.25929454,0.00046404,120]
[406890287,1772267449812,-801.64806914,0.00046404,120]
[406890289,1772267449822,-150.84128172,0.00046404,120]
[406890291,1772267449833,-893.50517441,0.00046404,30]
[406890293,1772267449843,-165.14987233,0.00046404,120]
[406890295,1772267449853,-1912.13623786,0.00046404,30]
[406890297,1772267449862,-2600.96596646,0.00046404,30]
[406890299,1772267449873,-5573.09161951,0.00046404,120]
[406890302,1772267449884,-1996.11530807,0.00046404,120]
[406890303,1772267449894,-377.49637441,0.00046404,120]
[406890306,1772267449903,-403.93692555,0.00046404,48]
[406890308,1772267449913,-1026.94959172,0.00046404,2]
[406890310,1772267449923,-3446.999999,0.00046404,30]
[406890312,1772267449932,-2333.33218029,0.00046404,120]
[406890314,1772267449944,-2381.0,0.00046404,30]
[406890316,1772267449953,-457.62,0.00046404,120]
[406890318,1772267449963,-210.21,0.00046404,30]
[406890320,1772267449972,-4522.12333541,0.00046404,120]
[406890322,1772267449981,-4000.0,0.00046404,120]
[406890324,1772267449991,-170.88603555,0.00046454,120]
[406890326,1772267450000,-150.0,0.00046467,2]
[406890328,1772267450010,-160.84,0.00046575,120]
[406890330,1772267450020,-843.0,0.00046575,120]
[406890331,1772267450032,-737.84379906,0.00046576,7]
[406890334,1772267450042,-271.73047182,0.00046576,7]
[406890336,1772267450052,-200.0,0.00046587,12]
[406890338,1772267450062,-3875.96,0.000466,30]
[406890340,1772267450071,-536.05,0.000468,120]
[406890342,1772267450085,-745.50416723,0.000469,120]
[406890344,1772267450095,-2492.87,0.000469,14]
[406890346,1772267450105,-3146.61,0.000469,14]
[406890348,1772267450115,-714.67,0.000469,14]
[406890350,1772267450128,-1040.5,0.00046915,120]
[406890352,1772267450138,-824.848314,0.00047021,2]
[406890354,1772267450148,-1772.591538,0.00047021,2]
[406890356,1772267450158,-1200.808,0.000471,120]
[406890358,1772267450170,-1200.8,0.000471,120]
[406890360,1772267450179,-996.0,0.000471,30]
[406890363,1772267450189,-843.0,0.00047123,120]
[406890364,1772267450202,-152.0,0.000474,120]
[406890366,1772267450212,-23000.0,0.000475,120]
[406890368,1772267450222,-359.8188,0.000475,90]
[406890370,1772267450231,-564.99,0.000475,60]
[406890373,1772267450241,-2000.0,0.000475,2]
[406890375,1772267450251,-200.0,0.00047645,13]
[406890376,1772267450260,-843.0,0.00047671,120]
[406890379,1772267450270,-199.0,0.00047896,16]
[406890380,1772267450279,-1040.5,0.00047932,120]
[406890383,1772267450294,-827.0,0.00048,120]
[406890385,1772267450303,-308.66,0.00048,120]
[406890387,1772267450313,-156.202,0.00048027,82]
[406890389,1772267450323,-155.0,0.000482,120]
[406890391,1772267450332,-843.0,0.00048219,120]
[406890393,1772267450342,-3875.96,0.000483,30]
[406890395,1772267450362,-263.0,0.00048329,90]
[406890398,1772267450382,-856.28,0.00048348,120]
[406890400,1772267450412,-150.60955201,0.000484,120]
[406890402,1772267450427,-2492.87,0.000484,14]
[406890405,1772267450441,-3146.61,0.000484,14]
[406890407,1772267450455,-714.67,0.000484,14]
[406890410,1772267450469,-500.0,0.00048493,120]
[406890412,1772267450484,-151.01046844,0.000485,120]
[406890415,1772267450503,-845.0,0.00048619,31]
[406890418,1772267450517,-160.0,0.00048619,31]
[406890420,1772267450531,-341.19521294,0.00048633,120]
[406890423,1772267450543,-750.48753913,0.0004869,120]
[406890425,1772267450556,-543.0,0.00048722,31]
[406890427,1772267450570,-843.0,0.00048767,120]
[406890430,1772267450584,-1000.0,0.000488,120]
[406890432,1772267450598,-1000.0,0.000488,120]
[406890435,1772267450612,-1000.0,0.000488,120]
[406890437,1772267450627,-1000.0,0.000488,120]
[406890440,1772267450642,-1000.0,0.000488,120]
[406890442,1772267450655,-1000.0,0.000488,120]
[406890445,1772267450673,-1000.0,0.000488,120]
[406890448,1772267450687,-1000.0,0.000488,120]
[406890450,1772267450701,-178.80277909,0.000489,120]
[406890453,1772267450715,-1040.5,0.00048949,120]
[406890455,1772267450727,-845.0,0.00048977,31]
[406890457,1772267450741,-1299.02922,0.00049,120]
[406890460,1772267450755,-171.1655333,0.00049,30]
[406890463,1772267450775,-191.16489776,0.00049,30]
[406890465,1772267450791,-150.10936611,0.00049,120]
[406890468,1772267450806,-200.0,0.00049037,14]
[406890470,1772267450818,-845.0,0.00049039,31]
[406890473,1772267450828,-200.0,0.00049065,14]
[406890475,1772267450840,-200.0,0.00049066,14]
[406890478,1772267450857,-200.0,0.00049066,14]
[406890480,1772267450870,-600.0,0.00049069,120]
[406890482,1772267450881,-200.0,0.00049076,14]
[406890484,1772267450891,-203402.6180132,0.000492,120]
[406890487,1772267450903,-153.43,0.00049215,120]
[406890489,1772267450916,-252.27,0.00049215,120]
[406890491,1772267450931,-249.3060658,0.00049312,120]
[406890493,1772267450946,-976.08963155,0.00049315,120]
[406890496,1772267450957,-179.11291569,0.00049315,2]
[406890498,1772267450969,-500.0,0.00049315,3]
[406890500,1772267450981,-500.0,0.00049315,3]
[406890502,1772267450993,-500.0,0.00049315,3]
[406890505,1772267451006,-500.0,0.00049315,3]
[406890507,1772267451019,-500.0,0.00049315,3]
[406890510,1772267451039,-500.0,0.00049315,3]
[406890512,1772267451053,-500.0,0.00049315,3]
[406890514,1772267451065,-500.0,0.00049315,3]
[406890517,1772267451078,-500.0,0.00049315,3]
[406890519,1772267451090,-500.0,0.00049315,3]
[406890521,1772267451102,-500.0,0.00049315,3]
[406890524,1772267451114,-500.0,0.00049315,3]
[406890526,1772267451127,-500.0,0.00049315,3]
[406890528,1772267451143,-500.0,0.00049315,3]
[406890530,1772267451156,-500.0,0.00049315,3]
[406890533,1772267451168,-500.0,0.00049315,3]
[406890535,1772267451180,-500.0,0.00049315,3]
[406890537,1772267451192,-500.0,0.00049315,3]
[406890539,1772267451206,-500.0,0.00049315,3]
[406890542,1772267451217,-500.0,0.00049315,3]
[406890545,1772267451240,-335.80320377,0.00049315,3]
[406890548,1772267451256,-500.0,0.00049315,120]
[406890550,1772267451270,-500.0,0.00049315,120]
[406890552,1772267451284,-500.0,0.00049315,120]
[406890555,1772267451297,-500.0,0.00049315,120]
[406890557,1772267451311,-500.0,0.00049315,120]
[406890560,1772267451327,-500.0,0.00049315,120]
[406890563,1772267451340,-500.0,0.00049315,120]
[406890565,1772267451353,-500.0,0.00049315,120]
[406890568,1772267451367,-500.0,0.00049315,120]
[406890570,1772267451380,-500.0,0.00049315,120]
[406890572,1772267451400,-224.16111404,0.00049315,120]
[406890575,1772267451412,-500.0,0.00049315,120]
[406890577,1772267451424,-500.0,0.00049315,120]
[406890579,1772267451437,-438.0,0.00049315,120]
[406890581,1772267451454,-500.0,0.00049315,120]
[406890584,1772267451466,-518.530408,0.00049315,120]
[406890586,1772267451477,-500.0,0.00049315,120]
[406890588,1772267451490,-506.51319871,0.00049315,120]
[406890590,1772267451502,-500.0,0.00049315,120]
[406890593,1772267451513,-500.0,0.00049315,120]
[406890595,1772267451525,-500.0,0.00049315,120]
[406890597,1772267451537,-500.0,0.00049315,120]
[406890599,1772267451549,-500.0,0.00049315,120]
[406890602,1772267451561,-500.0,0.00049315,120]
[406890604,1772267451572,-500.0,0.00049315,120]
[406890606,1772267451584,-500.0,0.00049315,120]
[406890608,1772267451595,-500.0,0.00049315,120]
[406890611,1772267451607,-500.0,0.00049315,120]
[406890613,1772267451619,-500.0,0.00049315,120]
[406890615,1772267451630,-612.61468761,0.00049315,120]
[406890617,1772267451642,-163.34127422,0.00049315,120]
[406890620,1772267451654,-177.68060729,0.00049315,120]
[406890622,1772267451666,-625.28167756,0.00049315,120]
[406890624,1772267451679,-258.54068305,0.00049315,120]
[406890627,1772267451693,-567.1754,0.00049315,120]
[406890629,1772267451706,-268.97829875,0.00049315,120]
[406890632,1772267451717,-282.83419226,0.00049315,120]
[406890634,1772267451726,-500.0,0.00049315,120]
[406890636,1772267451735,-500.0,0.00049315,120]
[406890638,1772267451744,-500.0,0.00049315,120]
[406890640,1772267451758,-500.0,0.00049315,120]
[406890642,1772267451768,-500.0,0.00049315,120]
[406890644,1772267451778,-500.0,0.00049315,120]
[406890646,1772267451788,-500.0,0.00049315,120]
[406890648,1772267451798,-556.20362693,0.00049315,120]
[406890650,1772267451808,-500.0,0.00049315,120]
[406890671,1772267452010,-217.7660441,0.00049315,120]
[406890674,1772267452031,-193.80585478,0.00049315,120]
[406890676,1772267452042,-500.0,0.00049315,120]
[406890678,1772267452051,-192.62702733,0.00049315,120]
[406890680,1772267452061,-500.0,0.00049315,120]
[406890682,1772267452070,-500.0,0.00049315,120]
[406890684,1772267452079,-500.0,0.00049315,120]
[406890686,1772267452089,-500.0,0.00049315,120]
[406890688,1772267452098,-500.0,0.00049315,120]
[406890690,1772267452108,-547.30657081,0.00049315,120]
[406890692,1772267452118,-163.63845035,0.00049315,120]
[406890694,1772267452132,-263.22668194,0.00049315,120]
[406890696,1772267452141,-498.18071822,0.00049315,120]
[406890698,1772267452151,-500.0,0.00049315,120]
[406890700,1772267452160,-479.90736072,0.00049315,120]
[406890702,1772267452171,-206.84022116,0.00049315,120]
[406890704,1772267452181,-153.68880347,0.00049315,120]
[406890706,1772267452193,-552.16,0.00049315,120]
[406890708,1772267452205,-552.16,0.00049315,120]
[406890710,1772267452215,-552.16,0.00049315,120]
[406890712,1772267452225,-552.16,0.00049315,120]
[406890714,1772267452234,-552.16,0.00049315,120]
[406890716,1772267452243,-552.16,0.00049315,120]
[406890718,1772267452252,-500.0,0.00049315,120]
[406890720,1772267452265,-552.16,0.00049315,120]
[406890722,1772267452275,-500.0,0.00049315,120]
[406890724,1772267452284,-552.16,0.00049315,120]
[406890726,1772267452294,-500.0,0.00049315,120]
[406890728,1772267452303,-552.16,0.00049315,120]
[406890730,1772267452312,-500.0,0.00049315,120]
[406890732,1772267452322,-552.16,0.00049315,120]
[406890734,1772267452331,-224.60884402,0.00049315,120]
[406890736,1772267452340,-552.16,0.00049315,120]
[406890738,1772267452350,-552.16,0.00049315,120]
[406890740,1772267452359,-552.16,0.00049315,120]
[406890742,1772267452368,-500.0,0.00049315,120]
[406890744,1772267452378,-552.16,0.00049315,120]
[406890746,1772267452387,-552.16,0.00049315,120]
[406890748,1772267452396,-552.16,0.00049315,120]
[406890750,1772267452405,-552.16,0.00049315,120]
[406890752,1772267452415,-552.16,0.00049315,120]
[406890754,1772267452425,-552.16,0.00049315,120]
[406890756,1772267452434,-569.7040501,0.00049315,120]
[406890758,1772267452444,-552.16,0.00049315,120]
[406890760,1772267452453,-552.16,0.00049315,120]
[406890762,1772267452463,-552.16,0.00049315,120]
[406890764,1772267452473,-552.16,0.00049315,120]
[406890766,1772267452483,-552.36369313,0.00049315,120]
[406890768,1772267452492,-177.1806686,0.00049315,120]
[406890770,1772267452501,-329.79180288,0.00049315,120]
[406890772,1772267452511,-165.49342811,0.00049315,120]
[406890774,1772267452520,-206.25903822,0.00049315,120]
[406890776,1772267452530,-500.0,0.00049315,120]
[406890778,1772267452539,-500.0,0.00049315,120]
[406890780,1772267452548,-500.0,0.00049315,120]
[406890782,1772267452558,-500.0,0.00049315,120]
[406890784,1772267452568,-500.0,0.00049315,120]
[406890786,1772267452578,-500.0,0.00049315,120]
[406890788,1772267452588,-500.0,0.00049315,120]
[406890790,1772267452597,-500.0,0.00049315,120]
[406890792,1772267452607,-500.0,0.00049315,120]
[406890794,1772267452616,-341.820169,0.00049315,120]
[406890796,1772267452626,-302.83108386,0.00049315,120]
[406890798,1772267452635,-567.20045311,0.00049315,120]
[406890800,1772267452645,-173.23386289,0.00049315,120]
[406890803,1772267452655,-709.47,0.00049315,120]
[406890805,1772267452665,-709.47,0.00049315,120]
[406890807,1772267452675,-709.47,0.00049315,120]
[406890809,1772267452685,-709.47,0.00049315,120]
[406890811,1772267452695,-709.47,0.00049315,120]
[406890812,1772267452705,-709.47,0.00049315,120]
[406890813,1772267452715,-227.49435614,0.00049315,120]
[406890814,1772267452724,-709.47,0.00049315,120]
[406890815,1772267452734,-709.47,0.00049315,120]
[406890816,1772267452743,-709.47,0.00049315,120]
[406890817,1772267452752,-709.47,0.00049315,120]
[406890818,1772267452762,-709.47,0.00049315,120]
[406890819,1772267452772,-709.47,0.00049315,120]
[406890820,1772267452783,-709.47,0.00049315,120]
[406890821,1772267452792,-709.47,0.00049315,120]
[406890822,1772267452802,-709.47,0.00049315,120]
[406890823,1772267452812,-709.47,0.00049315,120]
[406890824,1772267452822,-709.47,0.00049315,120]
[406890825,1772267452832,-709.47,0.00049315,120]
[406890826,1772267452841,-709.47,0.00049315,120]
[406890827,1772267452851,-500.0,0.00049315,120]
[406890828,1772267452860,-709.47,0.00049315,120]
[406890830,1772267452870,-663.82,0.00049315,120]
[406890831,1772267452879,-500.0,0.00049315,120]
[406890833,1772267452888,-663.82,0.00049315,120]
[406890835,1772267452898,-500.0,0.00049315,120]
[406890838,1772267452908,-709.47,0.00049315,120]
[406890840,1772267452917,-663.82,0.00049315,120]
[406890841,1772267452926,-709.47,0.00049315,120]
[406890843,1772267452936,-500.0,0.00049315,120]
[406890845,1772267452947,-244.35146237,0.00049315,120]
[406890847,1772267452956,-500.0,0.00049315,120]
[406890849,1772267452966,-709.47,0.00049315,120]
[406890851,1772267452975,-663.82,0.00049315,120]
[406890854,1772267452987,-500.0,0.00049315,120]
[406890856,1772267452996,-709.68669685,0.00049315,120]
[406890858,1772267453006,-663.82,0.00049315,120]
[406890860,1772267453015,-500.0,0.00049315,120]
[406890862,1772267453025,-663.82,0.00049315,120]
[406890864,1772267453035,-500.0,0.00049315,120]
[406890866,1772267453044,-663.82,0.00049315,120]
[406890868,1772267453054,-500.0,0.00049315,120]
[406890870,1772267453063,-663.82,0.00049315,120]
[406890872,1772267453072,-663.82,0.00049315,120]
[406890874,1772267453082,-445.11858027,0.00049315,120]
[406890876,1772267453092,-663.82,0.00049315,120]
[406890878,1772267453102,-500.0,0.00049315,120]
[406890880,1772267453112,-663.82,0.00049315,120]
[406890882,1772267453124,-500.0,0.00049315,120]
[406890884,1772267453139,-663.82,0.00049315,120]
[406890886,1772267453148,-500.0,0.00049315,120]
[406890888,1772267453158,-663.82,0.00049315,120]
[406890890,1772267453168,-500.0,0.00049315,120]
[406890892,1772267453177,-663.82,0.00049315,120]
[406890894,1772267453186,-526.39375913,0.00049315,120]
[406890896,1772267453198,-663.82,0.00049315,120]
[406890898,1772267453210,-663.82,0.00049315,120]
[406890900,1772267453219,-663.82,0.00049315,120]
[406890902,1772267453229,-619.98989293,0.00049315,120]
[406890904,1772267453239,-663.82,0.00049315,120]
[406890906,1772267453249,-663.82,0.00049315,120]
[406890908,1772267453258,-663.82,0.00049315,120]
[406890910,1772267453267,-663.82,0.00049315,120]
[406890912,1772267453277,-500.0,0.00049315,120]
[406890914,1772267453286,-663.82,0.00049315,120]
[406890916,1772267453295,-500.0,0.00049315,120]
[406890918,1772267453305,-663.82,0.00049315,120]
[406890920,1772267453314,-202.16662273,0.00049315,120]
[406890922,1772267453323,-664.04756619,0.00049315,120]
[406890924,1772267453332,-256.95381938,0.00049315,120]
[406890926,1772267453342,-405.54184477,0.00049315,120]
[406890928,1772267453351,-500.0,0.00049315,120]
[406890930,1772267453361,-500.0,0.00049315,120]
[406890932,1772267453370,-182.46021567,0.00049315,120]
[406890934,1772267453379,-167.84006897,0.00049315,120]
[406890936,1772267453389,-500.0,0.00049315,120]
[406890938,1772267453398,-500.0,0.00049315,120]
[406890940,1772267453408,-535.12679281,0.00049315,120]
[406890942,1772267453417,-1332.83,0.00049315,120]
[406890944,1772267453427,-305.71683323,0.00049315,120]
[406890946,1772267453436,-1332.83,0.00049315,120]
[406890948,1772267453446,-1332.83,0.00049315,120]
[406890950,1772267453456,-254.78003826,0.00049315,120]
[406890952,1772267453466,-1332.83,0.00049315,120]
[406890955,1772267453475,-1332.83,0.00049315,120]
[406890956,1772267453486,-1332.83,0.00049315,120]
[406890958,1772267453498,-1332.83,0.00049315,120]
[406890960,1772267453507,-540.10683331,0.00049315,120]
[406890963,1772267453517,-1332.83,0.00049315,120]
[406890964,1772267453526,-1332.83,0.00049315,120]
[406890967,1772267453536,-1332.83,0.00049315,120]
[406890969,1772267453545,-1332.83,0.00049315,120]
[406890970,1772267453555,-1332.83,0.00049315,120]
[406890973,1772267453564,-1332.83,0.00049315,120]
[406890975,1772267453573,-1332.83,0.00049315,120]
[406890977,1772267453583,-1332.83,0.00049315,120]
[406890979,1772267453592,-1332.83,0.00049315,120]
[406890980,1772267453602,-1332.83,0.00049315,120]
[406890982,1772267453612,-1332.83,0.00049315,120]
[406890984,1772267453621,-1332.83,0.00049315,120]
[406890987,1772267453631,-1332.83,0.00049315,120]
[406890989,1772267453640,-1332.83,0.00049315,120]
[406890991,1772267453650,-1332.83,0.00049315,120]
[406890993,1772267453659,-1332.83,0.00049315,120]
[406890994,1772267453669,-1333.04407179,0.00049315,120]
[406890997,1772267453678,-167.128346,0.00049315,120]
[406890998,1772267453687,-409.34881899,0.00049315,120]
[406891001,1772267453699,-500.0,0.00049315,120]
[406891003,1772267453709,-500.0,0.00049315,120]
[406891005,1772267453719,-500.0,0.00049315,120]
[406891007,1772267453728,-511.52512427,0.00049315,120]
[406891009,1772267453738,-500.0,0.00049315,120]
[406891011,1772267453747,-500.0,0.00049315,120]
[406891013,1772267453757,-500.0,0.00049315,120]
[406891015,1772267453766,-500.0,0.00049315,120]
[406891017,1772267453775,-500.0,0.00049315,120]
[406891019,1772267453786,-500.0,0.00049315,120]
[406891021,1772267453795,-500.0,0.00049315,120]
[406891023,1772267453809,-500.0,0.00049315,120]
[406891025,1772267453819,-500.0,0.00049315,120]
[406891027,1772267453828,-500.0,0.00049315,120]
[406891029,1772267453837,-500.0,0.00049315,120]
[406891031,1772267453847,-500.0,0.00049315,120]
[406891033,1772267453856,-500.0,0.00049315,120]
[406891035,1772267453865,-329.29047365,0.00049315,120]
[406891037,1772267453874,-182.21246133,0.00049315,120]
[406891039,1772267453883,-256.9292133,0.00049315,120]
[406891041,1772267453893,-500.0,0.00049315,120]
[406891043,1772267453902,-354.71384368,0.00049315,120]
[406891045,1772267453912,-500.0,0.00049315,120]
[406891047,1772267453922,-500.0,0.00049315,120]
[406891049,1772267453931,-500.0,0.00049315,120]
[406891051,1772267453940,-500.0,0.00049315,120]
[406891053,1772267453950,-500.0,0.00049315,120]
[406891055,1772267453959,-500.0,0.00049315,120]
[406891057,1772267453969,-500.0,0.00049315,120]
[406891059,1772267453978,-500.0,0.00049315,120]
[406891061,1772267453988,-500.0,0.00049315,120]
[406891063,1772267453997,-500.0,0.00049315,120]
[406891065,1772267454006,-500.0,0.00049315,120]
[406891067,1772267454016,-500.0,0.00049315,120]
[406891069,1772267454025,-500.0,0.00049315,120]
[406891071,1772267454035,-500.0,0.00049315,120]
[406891073,1772267454044,-500.0,0.00049315,120]
[406891075,1772267454053,-500.0,0.00049315,120]
[406891077,1772267454062,-500.0,0.00049315,120]
[406891079,1772267454072,-500.0,0.00049315,120]
[406891081,1772267454081,-500.0,0.00049315,120]
[406891083,1772267454091,-500.0,0.00049315,120]
[406891085,1772267454100,-500.0,0.00049315,120]
[406891087,1772267454110,-500.0,0.00049315,120]
[406891089,1772267454119,-375.40855789,0.00049315,120]
[406891091,1772267454128,-500.0,0.00049315,120]
[406891093,1772267454141,-500.0,0.00049315,120]
[406891095,1772267454151,-500.0,0.00049315,120]
[406891097,1772267454161,-500.0,0.00049315,120]
[406891099,1772267454170,-500.0,0.00049315,120]
[406891101,1772267454181,-500.0,0.00049315,120]
[406891103,1772267454190,-500.0,0.00049315,120]
[406891105,1772267454199,-201.00218735,0.00049315,120]
[406891107,1772267454210,-309.4815275,0.00049315,120]
[406891109,1772267454220,-500.0,0.00049315,120]
[406891111,1772267454229,-238.48582176,0.00049315,120]
[406891113,1772267454238,-350.12532622,0.00049315,120]
[406891115,1772267454248,-328.79066994,0.00049315,120]
[406891117,1772267454258,-925.6,0.00049315,120]
[406891119,1772267454268,-925.6,0.00049315,120]
[406891121,1772267454277,-925.6,0.00049315,120]
[406891123,1772267454287,-925.6,0.00049315,120]
[406891125,1772267454296,-925.6,0.00049315,120]
[406891127,1772267454305,-500.0,0.00049315,120]
[406891129,1772267454315,-925.6,0.00049315,120]
[406891131,1772267454324,-289.67095551,0.00049315,120]
[406891133,1772267454334,-925.6,0.00049315,120]
[406891135,1772267454343,-925.6,0.00049315,120]
[406891137,1772267454353,-925.6,0.00049315,120]
[406891139,1772267454363,-925.6,0.00049315,120]
[406891141,1772267454372,-925.6,0.00049315,120]
[406891143,1772267454381,-925.6,0.00049315,120]
[406891145,1772267454391,-925.6,0.00049315,120]
[406891147,1772267454401,-925.6,0.00049315,120]
[406891149,1772267454410,-925.6,0.00049315,120]
[406891151,1772267454420,-925.6,0.00049315,120]
[406891153,1772267454430,-925.6,0.00049315,120]
[406891155,1772267454440,-925.6,0.00049315,120]
[406891157,1772267454449,-925.6,0.00049315,120]